Cogmind - Beta 10.2 *** ADVENTURER MODE // 2022.01.06 @ 19:37:14 // Winter2019/RPGLIKE Player: Grommile Result: Self-destructed Performance ------------- Evolutions (0) 0 Regions Visited (4) 800 Robots Destroyed (33) 165 Value Destroyed (799) 799 Prototype IDs (27) 540 Alien Tech Used (0) 0 Bonus (332) 332 TOTAL SCORE: 2636 Bonus ------- Follower Combat Kills 70 Aligned with FarCom 300 Friendly Fire -38 Cogmind --------- Core Integrity 850/850 Matter 286/300 Energy 141/160 System Corruption 0% Temperature Cool (0) Movement Treading (160) Location -9/Mines Parts ------- > --- POWER (1) -------- Light Nuclear Core > --- PROPULSION (2) --- Light Treads Light Treads > --- UTILITY (4) ------ Improved Heat Sink Signal Interpreter Improved Terrain Scanner Seismic Analyzer > --- WEAPON (2) ------- Beam Cannon Improved Light Cannon > --- INVENTORY (3) ---- Cloak of Protection Rocket Launcher Ripper Peak State ------------ > --- POWER ------------ Light Nuclear Core > --- PROPULSION ------- Light Treads Light Treads > --- UTILITY ---------- Improved Terrain Scanner Seismic Analyzer Cloak of Protection > --- WEAPON ----------- Beam Cannon Light Cannon > --- INVENTORY -------- Improved Heat Sink Signal Interpreter Rocket Launcher [Rating: 18] Favorites ----------- Power Light Nuclear Core Engine Ion Engine Power Core Light Nuclear Core Propulsion Light Treads Treads Light Treads Utility Improved Terrain Scanner Device Improved Terrain Scanner Processor Seismic Analyzer Weapon Beam Cannon Energy Cannon Beam Cannon Ballistic Gun Assault Rifle Ballistic Cannon Light Cannon Build | -11 -10 -10 -10 -9 ------- Run | Scr Mat Min Exi Min Slots Evolved 5 | 3 . . 1 1 Power . | . . . . . Propulsion 1 | 1 . . . . Utility 3 | 1 . . 1 1 Weapon 1 | 1 . . . . Parts Attached 21 | 7 10 . 2 2 Power 3 | 1 2 . . . Engine 2 | 1 1 . . . Core 1 | . 1 . . . Reactor . | . . . . . Propulsion 5 | 2 3 . . . Treads 5 | 2 3 . . . Leg . | . . . . . Wheel . | . . . . . Hover . | . . . . . Flight . | . . . . . Utility 5 | 2 . . 2 1 Device 3 | 1 . . 2 . Storage . | . . . . . Processor 2 | 1 . . . 1 Hackware . | . . . . . Protection . | . . . . . Artifact . | . . . . . Weapon 8 | 2 5 . . 1 Energy Gun . | . . . . . Energy Cannon 1 | . 1 . . . Ballistic Gun 5 | 2 3 . . . Ballistic Cannon 2 | . 1 . . 1 Launcher . | . . . . . Special Weapon . | . . . . . Impact Weapon . | . . . . . Slashing Weapon . | . . . . . Piercing Weapon . | . . . . . Special Melee Weapon . | . . . . . Unidentified Prototypes . | . . . . . Parts Lost . | . . . . . Power . | . . . . . Propulsion . | . . . . . Utility . | . . . . . Weapon . | . . . . . Highest Loss Streak . | . . . . . Average Slot Usage (%) 98 | . 98 100 96 97 Core 12 | . 11 14 12 11 Treads 26 | . 27 28 26 22 Device 15 | . 14 14 17 22 Processor 14 | . 14 14 12 18 Energy Cannon 11 | . 8 14 12 11 Ballistic Gun 5 | . 12 . . . Ballistic Cannon 9 | . 5 14 12 11 Naked Turns . | . . . . . Heaviest Build 13 | 10 12 12 13 13 Greatest Support 40 | 40 40 40 40 40 Greatest Overweight (x) 2 | 2 2 . . . Average Overweight (x) . | . . . . . Largest Inventory Capacity 3 | . . 3 3 3 Average Capacity 1 | . . 2 3 3 Most Carried 3 | . . 3 3 3 Average Carried 1 | . . 2 3 2 Final Capacity 3 | . . 3 3 3 Final Carried 3 | . . 3 3 3 Class Distribution -------------------- 83% | Mutant 11% | Scavenger-Skirmisher 5% | Scavenger-Mutant Dominant Class ---------------- Mutant | -10/Materials Mutant | -10/Mines Mutant | -10/Exiles Scavenger-Skirmisher | -9/Mines Resources | -11 -10 -10 -10 -9 ----------- Run | Scr Mat Min Exi Min Matter Collected 757 | 351 316 68 . 22 Remotely . | . . . . . Salvage Created 967 | 207 517 243 . . Parts 74 | 16 33 23 . 2 Haulers Intercepted 2 | . 2 . . . Recyclers Shooed 2 | . 2 . . . Parts Field Recycled . | . . . . . Retrieved Matter . | . . . . . Parts Self-Destructed . | . . . . . Prevented . | . . . . . Kills | -11 -10 -10 -10 -9 ------- Run | Scr Mat Min Exi Min Combat Hostiles Destroyed 19 | . 10 9 . . Guns 5 | . 5 . . . Cannons 14 | . 5 9 . . Classes Destroyed 7 | 3 3 1 . . Worker 2 | 1 . 1 . . Tunneler 6 | 5 . . . 1 Hauler 2 | . 2 . . . Recycler 2 | 1 1 . . . Watcher 2 | . 2 . . . Swarmer 1 | . . 1 . . Grunt 18 | . 10 8 . . Best Kill Streak 4 | 4 2 3 . 1 Combat Bots Only 2 | . 2 2 . . Max Kills in Single Turn 1 | 1 1 1 . 1 Gunslinging . | . . . . . Exploded . | . . . . . Melee . | . . . . . Uniques/NPCs Destroyed . | . . . . . Combat | -11 -10 -10 -10 -9 -------- Run | Scr Mat Min Exi Min Damage Taken 463 | . 324 139 . . Core 373 | . 256 117 . . Absorbed by Shields . | . . . . . Redirected to Core 289 | . 215 74 . . Core Remaining (%) 100 | 100 . . . . Volleys Fired 81 | 14 49 17 . 1 Largest 2 | 2 2 2 . 2 Hottest 95 | 40 95 95 . 95 Shots Fired 156 | 27 93 34 . 2 Gun 91 | 27 64 . . . Cannon 65 | . 29 34 . 2 Launcher . | . . . . . Special . | . . . . . Kinetic 115 | 27 70 17 . 1 Thermal 41 | . 23 17 . 1 Explosive . | . . . . . Electromagnetic . | . . . . . Robot Hit Streak 44 | 16 44 20 . 10 Robot Miss Streak 2 | 2 1 1 . . Penetration Max . | . . . . . Secondary Targets . | . . . . . Shots Hit Robots 130 | 21 81 26 . 2 Core Hits 47 | 7 26 13 . 1 Critical Hits . | . . . . . Critical Kills . | . . . . . Critical Parts Destroyed . | . . . . . Melee Attacks . | . . . . . Impact . | . . . . . Slashing . | . . . . . Piercing . | . . . . . Sneak Attacks . | . . . . . Combat Hostiles . | . . . . . Follow-up Attacks . | . . . . . Damage Inflicted 1846 | 253 1070 480 . 43 Guns 905 | 253 652 . . . Cannons 930 | . 418 474 . 38 Explosions . | . . . . . Melee . | . . . . . Ramming 11 | . . 6 . 5 Kinetic 1186 | 253 711 201 . 21 Thermal 649 | . 359 273 . 17 Explosive . | . . . . . Electromagnetic . | . . . . . Impact . | . . . . . Slashing . | . . . . . Piercing . | . . . . . Highest Corruption . | . . . . . Average Corruption . | . . . . . Corruption Purged . | . . . . . Overload Shots . | . . . . . Overflow Damage . | . . . . . Projectiles . | . . . . . Explosions . | . . . . . Melee . | . . . . . Knockbacks . | . . . . . Impact . | . . . . . Kinetic . | . . . . . Secondary . | . . . . . Self-Inflicted Damage . | . . . . . Shots . | . . . . . Rammed 3 | . . 1 . 2 Targets Rammed 4 | . . 1 . 3 Kicked . | . . . . . Crushed 1 | . . . . 1 Highest Temperature 219 | . 219 185 . . Average Temperature 64 | . 58 70 . . Received Heat Transfer 342 | . 243 99 . . Siege Activations . | . . . . . Robots Corrupted . | . . . . . Combat Hostiles . | . . . . . Parts Fried . | . . . . . Impact Corruptions . | . . . . . Robots Melted . | . . . . . Combat Hostiles . | . . . . . Parts Melted 1 | . . 1 . . Heat Transferred 1332 | . 740 555 . 37 Parts Sabotaged . | . . . . . Parts Stolen . | . . . . . Parts Stripped . | . . . . . Power Chain Reactions . | . . . . . Missiles Intercepted . | . . . . . Alert | -11 -10 -10 -10 -9 ------- Run | Scr Mat Min Exi Min Peak Influence 195 | 35 192 195 . 20 Initial 26 | . 19 26 . . Average 62 | 20 67 84 . 2 Maximum Alert Level . | . . . . . Low Security (%) 100 | 100 100 100 . 100 Level 1 . | . . . . . Level 2 . | . . . . . Level 3 . | . . . . . Level 4 . | . . . . . Level 5 . | . . . . . High Security . | . . . . . Max Security . | . . . . . Squads Dispatched 3 | . 2 1 . . Investigation 3 | . 2 1 . . Extermination . | . . . . . Reinforcement . | . . . . . Assault . | . . . . . Garrison . | . . . . . Intercept . | . . . . . Construction Impeded . | . . . . . Haulers Reinforced . | . . . . . Stealth | -11 -10 -10 -10 -9 --------- Run | Scr Mat Min Exi Min Distress Signals . | . . . . . Communications Jammed . | . . . . . Distress Signals . | . . . . . Times Spotted 30 | . 15 14 . 1 Peak Tracking Total 4 | . 4 2 . 1 Tactical Retreats 2 | . . 2 . . Traps | -11 -10 -10 -10 -9 ------- Run | Scr Mat Min Exi Min Traps Triggered 5 | . 5 . . . Indirectly . | . . . . . Trap Hack Attempts . | . . . . . Triggered . | . . . . . Disarmed . | . . . . . Reprogrammed . | . . . . . Reused . | . . . . . Traps Extracted . | . . . . . Installed . | . . . . . Triggered . | . . . . . Machines | -11 -10 -10 -10 -9 ---------- Run | Scr Mat Min Exi Min Machines Disabled 2 | . 1 1 . . Max in Single Turn 1 | . 1 . . . Machines Sabotaged . | . . . . . Garrisons Compromised . | . . . . . Overloaded Fab Kills . | . . . . . Fab Network Shutdowns . | . . . . . Hacking | -11 -10 -10 -10 -9 --------- Run | Scr Mat Min Exi Min Machines Accessed 11 | . 9 1 1 . Terminals 8 | . 7 1 . . Fabricators . | . . . . . Repair Stations . | . . . . . Recycling Units 2 | . 2 . . . Scanalyzers . | . . . . . Garrison Access . | . . . . . Total Hacks 33 | . 28 4 1 . Successful 19 | . 17 1 1 . Failed 14 | . 11 3 . . Catastrophic 1 | . 1 . . . Database Lockouts . | . . . . . Manual 18 | . 12 5 1 . Terminals 28 | . 24 4 . . Fabricators . | . . . . . Repair Stations . | . . . . . Recycling Units 4 | . 4 . . . Scanalyzers . | . . . . . Garrison Access . | . . . . . Terminal Hacks 15 | . 13 1 1 . Robot Analysis 6 | . 5 1 . . Prototype ID Bank 2 | . 2 . . . Branch Access Points 1 | . 1 . . . Emergency Access Points 2 | . 2 . . . Locate Traps 3 | . 3 . . . EX-Prototype ID Bank 1 | . . . 1 . Fabricator Hacks . | . . . . . Repair Station Hacks . | . . . . . Recycling Unit Hacks 2 | . 2 . . . Retrieve Components 2 | . 2 . . . Scanalyzer . | . . . . . Garrison Access Hacks . | . . . . . Unauthorized Hacks 2 | . 2 . . . Terminals . | . . . . . Fabricators . | . . . . . Repair Stations . | . . . . . Recycling Units 2 | . 2 . . . Reject 2 | . 2 . . . Scanalyzers . | . . . . . Garrison Access . | . . . . . Data Cores Recovered . | . . . . . Used . | . . . . . Hacking Detections 9 | . 8 1 . . Full Trace Events 6 | . 5 1 . . Feedback Events . | . . . . . Feedback Blocked . | . . . . . Robot Schematics Acquired . | . . . . . Robots Built . | . . . . . Matter . | . . . . . Time . | . . . . . Total Robot Build Rating . | . . . . . Part Schematics Acquired . | . . . . . Parts Built . | . . . . . Matter . | . . . . . Time . | . . . . . Total Part Build Rating . | . . . . . Parts Repaired . | . . . . . Time . | . . . . . Parts Recycled . | . . . . . Recycled Matter . | . . . . . Retrieved Matter . | . . . . . Retrieved Components 13 | . 13 . . . Parts Scanalyzed . | . . . . . Part Schematics Acquired . | . . . . . Parts Damaged . | . . . . . Bothacking | -11 -10 -10 -10 -9 ------------ Run | Scr Mat Min Exi Min Used RIF Installer . | . . . . . Robots Hacked . | . . . . . Non-combat . | . . . . . Combat . | . . . . . Robot Hacks Applied . | . . . . . Relay Couplers Released . | . . . . . Robots Rewired . | . . . . . Allies Hacked . | . . . . . Hacks Repelled . | . . . . . Allies | -11 -10 -10 -10 -9 -------- Run | Scr Mat Min Exi Min Total Allies 3 | . . 3 . . Largest Group 3 | . . 3 2 2 Highest-Rated Group 40 | . . 40 32 32 Highest-Rated Ally 16 | . . 16 16 16 Total Orders . | . . . . . Ally Attacks 15 | . . 13 . 2 Total Damage 197 | . . 166 . 31 Kills 2 | . . 2 . . Allies Corrupted . | . . . . . Allies Melted . | . . . . . Intel | -11 -10 -10 -10 -9 ------- Run | Scr Mat Min Exi Min Robot Analysis Total 6 | . 5 1 . . Derelict Logs Recovered 3 | . . 2 . 1 Drone Launches . | . . . . . Drone Recoveries . | . . . . . Exploration | -11 -10 -10 -10 -9 ------------- Run | Scr Mat Min Exi Min Turns Passed 3152 | 159 1172 993 474 354 Spaces Moved 1774 | 71 622 572 295 214 Core 9 | 7 2 . . . Treads 1765 | 64 620 572 295 214 Legs . | . . . . . Wheels . | . . . . . Hover . | . . . . . Flight . | . . . . . Fastest Speed 50 | 50 100 160 160 160 Average Speed 159 | 153 159 160 160 160 Slowest Speed 160 | 160 160 160 160 160 Overloaded Moves . | . . . . . Propulsion Burnouts . | . . . . . Robots Hopped . | . . . . . Cave-ins Triggered . | . . . . . Exploration Rate (%) 62 | 5 96 95 64 50 Regions Visited 4 Branch Regions 3 Pre-discovered Areas . | . . . . . Known Exits Taken 1 | . 1 . . . Unknown Exits Taken 3 | 1 . 1 1 . Scrap Searched 3 | . . 1 . 2 Spaces Dug . | . . . . . Terrain Destroyed . | . . . . . Melee . | . . . . . Projectile . | . . . . . AOE . | . . . . . Terrain Rammed . | . . . . . Walls Destroyed . | . . . . . Machines Disabled . | . . . . . Actions | -11 -10 -10 -10 -9 --------- Run | Scr Mat Min Exi Min Total 1927 | 91 703 615 296 222 Wait 15 | . 4 11 . . Move 1770 | 70 621 571 294 214 Hop . | . . . . . Pick Up 4 | . . 3 . 1 Fast Attach 18 | 7 10 . 1 . Attach 1 | . . . . 1 Detach . | . . . . . Swap 2 | . . . 1 1 Drop 4 | . 3 . . 1 Fire 81 | 14 49 17 . 1 Melee . | . . . . . Ram . | . . . . . Kick . | . . . . . Crush 4 | . . 1 . 3 Escape Stasis . | . . . . . Rewire . | . . . . . Trap . | . . . . . Miscellaneous 28 | . 16 12 . . Route ------- -11/Scrapyard -10/Materials (discovered 4 exits: [*Mat x3] / *Min) -10/Mines (discovered 3 exits: [*Mat x2] / *Exi) -10/Exiles (discovered 2 exits: [*Min x2]) -9/Mines (discovered 1 exit: [*Mat]) History --------- Turn | Location | Event 9 | -11/Scrapyard | Discovered new exit (range 16) 16 | -11/Scrapyard | Upgraded with Propulsion slot (x1) 16 | -11/Scrapyard | Upgraded with Utility slot (x1) 16 | -11/Scrapyard | Upgraded with Weapon slot (x1) 160 | -11/Scrapyard | Entered Materials 313 | -10/Materials | Build established: Mutant 445 | -10/Materials | Discovered new exit (range 5) 499 | -10/Materials | Identified exit to Mines 549 | -10/Materials | Discovered new exit (range 16) 858 | -10/Materials | Discovered new exit (range 11) 1180 | -10/Materials | Reached level 2 1191 | -10/Materials | Discovered new exit (range 12) 1332 | -10/Materials | Entered Mines 1333 | -10/Mines | Assembled infested the area 1335 | -10/Mines | Discovered new exit (range 15) 1412 | -10/Mines | Learned 2 Materials zone layouts 1663 | -10/Mines | Discovered new exit (range 5) 1860 | -10/Mines | Assisted by bots powering up and referring to "LRC-V3" 1881 | -10/Mines | Received a Rocket Launcher from a helpful Derelict 1918 | -10/Mines | Discovered new exit (range 15) 1918 | -10/Mines | Learned Materials emergency access door positions 1943 | -10/Mines | Reached level 3 2325 | -10/Mines | Entered Exiles 2325 | -10/Exiles | Accompanied by 2 allies 2349 | -10/Exiles | Discovered new exit (range 15) 2378 | -10/Exiles | Met 8R-AWN 2402 | -10/Exiles | Met EX-HEX 2460 | -10/Exiles | Met EX-BIN 2479 | -10/Exiles | Aligned with FarCom system 2481 | -10/Exiles | Given EX-Vault access code 2517 | -10/Exiles | Opened EX-Vault 2524 | -10/Exiles | Upgraded with Utility slot (x1) 2551 | -10/Exiles | Warned to stay clear of 0b10 Research branches 2642 | -10/Exiles | Found Cloak of Protection 2722 | -10/Exiles | Met EX-DEC 2778 | -10/Exiles | Discovered new exit (range 14) 2799 | -10/Exiles | Left Exiles lab with Cloak of Protection 2799 | -10/Exiles | Entered Mines 2799 | -9/Mines | Accompanied by 2 allies 2801 | -9/Mines | Reached level 4 2822 | -9/Mines | Upgraded with Utility slot (x1) 2838 | -9/Mines | Discovered new exit (range 8) 2900 | -9/Mines | A weapon hastily lodged in a ceiling crevice suddenly fell to the ground 3107 | -9/Mines | Learned location of 1 exit from Lower Caves 3114 | -9/Mines | Build established: Scavenger-Skirmisher 3142 | -9/Mines | Joined a pair of Derelicts in attacking an 0b10 outpost 3153 | -9/Mines | Self-destructed Last Messages --------------- A Ripper has been hastily shoved under some rubble with a note attached: "Rip and tear!" Acquired Ripper. K-01 Serf collects debris. Crushed T-07 Excavator. T-07 Excavator destroyed. K-01 Serf collects debris. Slammed into K-01 Serf. A derelict is hurriedly installing traps. OA-VCG(g): "Hehe, this'll put a wrench in their mining defense operations..." OA-VCG(g) slips into the shadows. Acquired 2 matter. Acquired derelict log, extracted data. Data stored: Lower Caves exits (x1). A derelict emerges from the shadows: "We've had our eye on this brand new outpost for a little while, just waiting for an opportunity to strike. Need some help?" Y-45 Defender destroyed. Dropped Lgt. Cannon. Map ----- +----------------------------------------------------+ | #### ##### ^ # ^#####?? ? ???#????? | | ##?## #### ##^###?##?# ? ???????? | | #?### #### ^ ####?#??????? ?????? | | ##### #### ########???? ??? ???? | | #### ##?##???#??##?? ?????? | | ########## ##?#######????????##? | | #?######### ##?####?#?#??? ??##? | | ########?#### ####??####????#?????? | | ############## ###?#?###?##???????? | | #####??#?###### ########??????????? | | #############?## ### #??#?#?#????#?? | | ##?#######?##### #?## #### ###???#???????? | | ######?######### #?## ##### ###? ??? ????? | | ########?##?# #### ###?# ##?#? ?? ?????? | | #?#???##?#?## #### ##### #### ? ?????? | | #####?####### #### """? ??? | | #?##?##### ##?# ############? "?? ???? | | #?######## #! #?## ######?#?#?# ????????? | | ## % ##?# ###?#?###?## ????? | | ## ###### = #### #?###?###??# ??? ???? | | # ? ???#?# #### #######?##?# ?"?" ?#?? | | ?#???#?########### #####??#??#?? ?"??????? | | ??? #?#?######?##### #?########?? ???????? | | ?????#?######?#?## ####"%*"##?? ? ??? ??? | | ? ???####?##?###### ###!g![!!##?#?????????? | | ??????#?###??#?##### ###[@!=!!#####??#??#??? | | ???#?#?#??#?###?##?# #### gg!##?###?#??????? | | ?#??? ???########### #####/g####??#?#?##???? | | ?????? ?##??##??#??# ### ##?#?#???????? | | ?#??? ??#?????###### # #??##???????? | | ???????? ?????#### #?#?#?????#?? | | ?????????? ? ###?# ### #??#??#?????? | | ???????? ?#### ??# ##????#?????? | | ?????????? ?#### #?# ###?????????? | | ????????#???? #?##??############???????????? | | ???????????? ??? ??#??#?#??#???#??#?##?#???? | | ??????????###??#??#??###?#?######????#?????? | | ?????????#??????#????#???##?###?#???#??????? | | ????????#??#????????#?????#????#???#???????? | | ?????????##??????######?#????#???##????????? | | ???????????????#???###??#???#???#??????????? | | | | | | | | | | | | | | | | | | | +----------------------------------------------------+ Best States ------------- Heat Dissipation 39 Energy Generation 14 Energy Capacity 250 Matter Stores 300 Matter Capacity 300 Sight Range 19 Robot Scan Range 6 Terrain Scan Range 16 Terrain Scan Density 160 Resistance: KI 20 Resistance: TH 20 Resistance: EX 20 Resistance: EM 20 Resistance: I 20 Resistance: S 20 Resistance: P 20 Evasion (%) 40 Recoil Reduction 2 Offensive Hacking 10 Item Schematics ----------------- None Robot Schematics ------------------ None Fabricated ------------ Nothing Alien Tech Used ----------------- None Achievements -------------- None Challenges ------------ None RPGLIKE | -11 -10 -10 -10 -9 --------- Run | Scr Mat Min Exi Min Levels Raised 3 | . 1 1 . 1 XP Earned 8643 | 4000 1530 2114 350 649 XP Spent 8500 | 3700 . 1775 800 2225 Upgrades 24 | 7 . 7 1 9 Propulsion Slot 1 | 1 . . . . Utility Slot 3 | 1 . . 1 1 Weapon Slot 1 | 1 . . . . Core Integrity 5 | . . . . 5 Inventory Capacity 3 | . . 3 . . Sight Range 3 | . . . . 3 Sensor Range 3 | . . 3 . . Terrain Scan Density 1 | . . 1 . . Ranged Accuracy 4 | 4 . . . . Protomatter Created 359 | . 211 148 . . Integrity Restored 539 | . 308 231 . . Core 373 | . 221 152 . . Parts 166 | . 87 79 . . Protomatter Decayed 226 | . 104 122 . . Game ------ Seed CoilDeuteriumRay Manual? 0 Play Time 00:18:01 Cumulative 29.0 hours Start 2022.01.06 @ 19:03:29 End 2022.01.06 @ 19:37:14 Sessions 3 Manual Loads 0 Difficulty Adventurer Special Mode Winter2019/RPGLIKE Game No. 46 Rogue 0 Adventurer 46 Explorer 0 Win Type - Total 0 Types 0/0/0/0/0/0/0/0/0 Lore% 50 Gallery% 58 Achievement% 31 Wizard Run 0 Options --------- ASCII 0 Keyboard 0 Movement Mouse Keybinds 0 Fullscreen 1 Font 18/SmallcapsGlow Map View 76x50 Tactical HUD 0 Map Filters NONE Filters NONE Steam 1 RUN: a4825508-8870-4e05-a3ad-7af717e4b0be